bitfinex-derivatives/quotes_SOLF0:USTF0_20260306
["timestamp","ask_amount","ask_price","bid_price","bid_amount"]
[1772800672852,10.425,86.322,86.27,7.16188593]
[1772800673053,5.86359795,86.321,86.27,7.16188593]
[1772800673655,5.86199808,86.316,86.27,7.16188593]
[1772800675358,5.86199808,86.316,86.21,11.6]
[1772800675359,5.86192675,86.302,86.25,7.16188593]
[1772800675954,10.426,86.315,86.262,10.432]
[1772800676152,5.83847466,86.333,86.215,20.876]
[1772800676352,5.83847466,86.333,86.25,7.16188593]
[1772800676550,10.427,86.309,86.25,7.16188593]
[1772800677056,5.83847466,86.313,86.25,7.16188593]
[1772800677253,5.83847466,86.313,86.23,7.16188593]
[1772800678859,10.429,86.29,86.232,10.436]
[1772800679654,10.429,86.29,86.239,10.435]
[1772800679855,10.43,86.28,86.23,7.16188593]
[1772800680059,5.83000179,86.295,86.23,7.16188593]
[1772800680259,5.83000179,86.295,86.239,10.435]
[1772800680563,5.83000179,86.295,86.23,7.16188593]
[1772800681354,7.16188593,86.36,86.251,2.25816421]
[1772800681662,7.16188593,86.34,86.236,2.29871236]
[1772800682364,20.849,86.33,86.236,2.29871236]
[1772800682764,20.849,86.33,86.245,2.2985372]
[1772800683168,10.427,86.304,86.247,2.2985372]
[1772800683361,10.427,86.304,86.25,7.16188593]
[1772800683567,3.6526184,86.307,86.251,2.35288456]
[1772800683761,3.6526184,86.321,86.256,2.35288456]
[1772800684366,10.429,86.291,86.241,2.35288456]
[1772800684862,3.6526184,86.297,86.241,2.35288456]
[1772800685363,3.6526184,86.297,86.243,2.35288456]
[1772800685765,3.6526184,86.294,86.206,2.34308271]
[1772800686568,3.6526184,86.294,86.211,2.34308271]
[1772800686763,3.6526184,86.268,86.212,2.34308271]
[1772800688569,3.6526184,86.264,86.212,2.34308271]
[1772800689070,10.432,86.261,86.212,2.34308271]
[1772800689268,3.6526184,86.26,86.212,2.34308271]
[1772800690061,7.16404622,86.31,86.212,2.34308271]
[1772800690266,10.432,86.266,86.213,2.3066092]
[1772800691170,14.0846184,86.266,86.213,2.3066092]
[1772800692170,3.6526184,86.257,86.213,2.3066092]
[1772800692970,3.6526184,86.272,86.217,2.04858142]
[1772800693767,3.6526184,86.27,86.217,2.04858142]
[1772800694173,3.6526184,86.27,86.21,7.16404622]
[1772800694362,3.6526184,86.267,86.21,7.16404622]
[1772800695265,10.432,86.266,86.211,2.07159492]
[1772800695465,3.6526184,86.265,86.211,2.07159492]
[1772800696266,3.6526184,86.259,86.195,12.48023365]
[1772800696471,3.6526184,86.259,86.196,2.04023365]
[1772800697075,3.6526184,86.254,86.2,2.04023365]
[1772800698073,3.6526184,86.254,86.201,10.44]
[1772800698469,3.6526184,86.254,86.22,2.86691805]
[1772800698770,3.6526184,86.254,86.151,205.7514699]
[1772800698771,3.6526184,86.249,86.19,2.86691805]
[1772800699275,3.6526184,86.221,86.18,2.86691805]
[1772800699875,3.6526184,86.221,86.19,2.86691805]
[1772800700475,3.6526184,86.221,86.166,2.03715371]
[1772800700874,3.6526184,86.243,86.181,2.03715371]
[1772800701875,3.6526184,86.243,86.183,2.04370277]
[1772800702370,3.6526184,86.237,86.165,340.85066689]
[1772800702571,3.6526184,86.237,86.165,342.89436966]
[1772800702767,3.6526184,86.237,86.166,2.04370277]
[1772800702971,3.6526184,86.227,86.168,2.04370277]
[1772800703578,3.6526184,86.216,86.134,1.85267555]
[1772800704770,3.6526184,86.208,86.137,1.85267555]
[1772800705770,3.6526184,86.195,86.109,185.42]
[1772800705967,3.6526184,86.195,86.091,1.79293672]
[1772800706376,3.6526184,86.195,86.098,1.79293672]
[1772800706577,3.6526184,86.168,86.098,1.79293672]
[1772800707878,3.6526184,86.16,86.098,1.79293672]
[1772800708279,3.6526184,86.149,86.082,1.695284]
[1772800709377,7.17256042,86.23,86.077,2.02030757]
[1772800709378,3.6526184,86.238,86.141,1.695284]
[1772800709680,3.6526184,86.238,86.18,7.17256042]
[1772800710879,3.6526184,86.225,86.16,7.17256042]
[1772800711881,3.89695289,86.223,86.16,7.17256042]
[1772800712381,3.89695289,86.24,86.181,1.65535188]
[1772800713478,3.89695289,86.261,86.2,7.17256042]
[1772800714079,3.89695289,86.25,86.192,1.65799182]
[1772800714275,3.89695289,86.25,86.18,7.17256042]
[1772800714481,3.89695289,86.25,86.181,1.65799182]
[1772800714984,3.89695289,86.249,86.182,10.442]
[1772800715482,3.89695289,86.249,86.186,10.441]
[1772800716078,3.89695289,86.249,86.192,1.53034341]
[1772800716286,3.89695289,86.267,86.201,1.53034341]
[1772800716784,3.89695289,86.267,86.206,1.53034341]
[1772800717582,3.89695289,86.256,86.2,7.17256042]
[1772800719084,3.89695289,86.256,86.201,10.44]
[1772800719488,3.89695289,86.256,86.2,7.17256042]
[1772800719879,3.89695289,86.256,86.188,1.54120144]
[1772800720087,3.89695289,86.256,86.189,10.441]
[1772800720482,3.89695289,86.256,86.19,1.25206159]
[1772800721286,3.89695289,86.256,86.2,7.17256042]
[1772800721887,3.89695289,86.255,86.2,7.17256042]
[1772800722588,3.89695289,86.255,86.201,11.69355438]
[1772800723188,3.89695289,86.255,86.201,1.25355438]
[1772800725080,3.89695289,86.244,86.185,1.24622677]
[1772800725680,3.89695289,86.234,86.18,7.17256042]
[1772800727191,3.89695289,86.234,86.183,1.05438185]
[1772800729092,3.89695289,86.283,86.197,10.44]
[1772800730288,3.89695289,86.259,86.205,1.01052798]
[1772800730694,3.89695289,86.305,86.22,7.17256042]
[1772800730894,20.849,86.328,86.22,7.17256042]
[1772800730895,3.89695289,86.285,86.225,10.437]
[1772800731698,3.89695289,86.28,86.225,10.437]
[1772800732095,3.89695289,86.28,86.232,10.436]
[1772800732296,3.89695289,86.297,86.241,1.00475416]
[1772800732692,3.89695289,86.297,86.247,10.434]
[1772800734897,3.89695289,86.297,86.25,7.17256042]
[1772800735204,4.03307944,86.319,86.251,1.04030235]
[1772800736002,4.03307944,86.319,86.25,7.17256042]
[1772800737203,4.03307944,86.306,86.25,7.17256042]
[1772800737400,4.03307944,86.306,86.236,1.0368422]
[1772800738499,4.03307944,86.304,86.236,1.0368422]
[1772800739901,4.03307944,86.304,86.253,10.433]
[1772800740498,4.03307944,86.304,86.253,11.37503518]
[1772800740698,4.03307944,86.304,86.258,10.433]
[1772800741208,4.03307944,86.336,86.254,0.94203518]
[1772800741610,4.01821458,86.328,86.264,10.432]
[1772800742511,4.01821458,86.317,86.257,0.94546862]
[1772800742906,4.01821458,86.334,86.271,0.94546862]
[1772800744207,4.01821458,86.316,86.254,0.92514205]
[1772800746006,4.01821458,86.316,86.256,10.433]
[1772800746210,4.01821458,86.316,86.256,11.37470689]
[1772800746612,4.01821458,86.316,86.263,10.432]
[1772800747809,4.01821458,86.315,86.256,0.94170689]
[1772800748510,4.01821458,86.315,86.26,0.94559841]
[1772800750013,7.15726495,86.35,86.243,0.97395204]
[1772800750014,4.01821458,86.303,86.243,0.97395204]
[1772800750710,4.01821458,86.301,86.25,10.434]
[1772800751507,4.01821458,86.301,86.211,0.9609476]
[1772800751908,4.01821458,86.284,86.222,10.437]
[1772800752212,4.01821458,86.284,86.211,0.9609476]
[1772800752612,4.01821458,86.282,86.219,0.96085724]
[1772800753211,4.01821458,86.282,86.222,10.437]
[1772800754512,4.01821458,86.282,86.229,10.436]
[1772800756413,4.01821458,86.277,86.21,7.15726495]
[1772800756613,4.01821458,86.277,86.211,1.01667043]
[1772800756915,4.01821458,86.277,86.228,1.01667043]
[1772800757910,4.01821458,86.277,86.232,10.436]
[1772800758610,4.01821458,86.277,86.211,1.06284671]
[1772800760016,4.01821458,86.275,86.216,10.438]
[1772800760518,4.01821458,86.265,86.192,1.13780453]
[1772800761317,4.01821458,86.246,86.192,1.13780453]
[1772800762719,4.01821458,86.246,86.184,10.442]
[1772800763219,4.01821458,86.246,86.192,10.441]
[1772800763416,4.01821458,86.246,86.192,11.61621439]
[1772800764320,4.01821458,86.246,86.18,7.15726495]
[1772800764321,4.01821458,86.246,86.196,1.13656979]
[1772800764512,4.01821458,86.246,86.201,1.13657783]
[1772800764816,4.01821458,86.265,86.202,1.13657783]
[1772800766113,4.01821458,86.263,86.203,10.439]
[1772800766312,4.01821458,86.263,86.203,11.58623988]
[1772800766515,4.01821458,86.263,86.204,1.14724761]
[1772800767819,4.01821458,86.263,86.207,1.14335773]
[1772800768122,4.01821458,86.263,86.189,1.1432731]
[1772800768424,4.01821458,86.259,86.19,10.441]
[1772800768723,4.01821458,86.259,86.191,1.1432807]
[1772800770122,4.01821458,86.259,86.18,7.15726495]
[1772800770528,4.01821458,86.259,86.181,1.11358873]
[1772800770924,4.01821458,86.259,86.167,336.63172408]
[1772800771118,4.01821458,86.259,86.167,337.74523106]
[1772800771322,4.01821458,86.259,86.168,1.11350698]
[1772800771728,3.76788051,86.248,86.189,11.55463789]
[1772800772129,3.76788051,86.248,86.197,10.44]
[1772800773633,3.76788051,86.248,86.206,10.439]
[1772800774029,3.76788051,86.248,86.189,1.11363789]
[1772800774632,3.76788051,86.248,86.18,8.23981188]
[1772800774834,3.76788051,86.248,86.181,1.08254693]
[1772800775836,3.76788051,86.248,86.195,10.44]
[1772800776136,10.58870431,86.302,86.167,336.63172408]
[1772800776137,3.76788051,86.309,86.201,1.09715106]
[1772800776331,3.76788051,86.307,86.201,1.09715106]
[1772800777731,3.76788051,86.272,86.217,10.438]
[1772800778332,3.76788051,86.261,86.208,10.439]
[1772800779038,3.76788051,86.261,86.201,1.09715106]
[1772800779534,3.76788051,86.295,86.244,10.434]
[1772800781141,3.76788051,86.295,86.251,10.434]
[1772800783544,3.76788051,86.309,86.26,10.433]
[1772800783743,3.76788051,86.309,86.252,1.13402247]
[1772800783943,10.428,86.3,86.253,10.433]
[1772800784138,3.76788051,86.299,86.24,7.15726495]
[1772800784439,3.76788051,86.298,86.252,10.433]
[1772800785440,3.76788051,86.298,86.241,1.14330852]
[1772800785646,3.76788051,86.298,86.227,1.23173066]
[1772800786542,3.76788051,86.296,86.227,1.23173066]
[1772800787047,3.76788051,86.296,86.243,1.23166805]
[1772800788750,10.429,86.294,86.243,1.23166805]
[1772800789152,3.76788051,86.296,86.243,1.23166805]
[1772800789951,3.76788051,86.296,86.244,10.434]
[1772800790848,3.76788051,86.31,86.253,1.1831987]
[1772800791452,3.76788051,86.302,86.254,10.433]
[1772800792453,3.76788051,86.302,86.26,2.86381869]
[1772800793045,3.76788051,86.299,86.25,2.86381869]
[1772800793752,3.76788051,86.299,86.26,2.86381869]
[1772800795753,3.86576574,86.296,86.26,2.86381869]
[1772800796256,3.86576574,86.296,86.25,2.86381869]
[1772800796958,3.86576574,86.293,86.25,2.86381869]
[1772800798760,3.86576574,86.291,86.25,2.86381869]
[1772800800159,3.86576574,86.291,86.26,2.86381869]
[1772800800355,3.86576574,86.291,86.196,20.881]
[1772800800356,3.86576574,86.291,86.25,2.86381869]
[1772800800664,3.86576574,86.289,86.25,2.86381869]
[1772800801360,3.86576574,86.289,86.241,1.13148102]
[1772800801560,3.86576574,86.289,86.25,2.86381869]
[1772800801954,3.73058078,86.288,86.25,2.86381869]
[1772800803358,3.73058078,86.288,86.241,1.13148102]
[1772800803554,3.73058078,86.288,86.25,2.86381869]
[1772800804156,3.73058078,86.288,86.197,20.881]
[1772800804157,3.73058078,86.288,86.26,2.86381869]
[1772800804362,3.73058078,86.3,86.26,2.86381869]
[1772800805068,3.73058078,86.3,86.25,2.86381869]
[1772800805261,3.73058078,86.299,86.25,2.86381869]
[1772800805465,3.73058078,86.288,86.24,4.04391792]
[1772800805660,3.73058078,86.288,86.24,2.86381869]
[1772800806765,3.73058078,86.286,86.24,2.86381869]
[1772800807266,10.43,86.285,86.24,2.86381869]
[1772800807460,3.73058078,86.284,86.23,2.86381869]
[1772800808155,3.73058078,86.274,86.23,2.86381869]
[1772800808766,10.431,86.271,86.23,2.86381869]
[1772800809067,3.73058078,86.269,86.22,2.86381869]
[1772800809369,3.73058078,86.269,86.21,2.86381869]
[1772800809865,3.73058078,86.254,86.21,2.86381869]
[1772800810460,3.73058078,86.254,86.21,2.86755064]
[1772800810663,3.73058078,86.243,86.2,2.86755064]
[1772800810855,3.73058078,86.243,86.184,1.29837927]
[1772800811061,3.73058078,86.243,86.19,2.86755064]
[1772800811262,3.73058078,86.235,86.19,2.86755064]
[1772800811864,3.73058078,86.235,86.2,2.86755064]
[1772800812264,3.73058078,86.235,86.191,1.23545765]
[1772800813770,3.73058078,86.235,86.19,2.86755064]
[1772800815859,3.73058078,86.252,86.201,1.2102419]
[1772800816068,3.73058078,86.252,86.21,2.86755064]
[1772800816461,3.73058078,86.252,86.201,1.2102419]
[1772800816663,3.73058078,86.252,86.21,2.86755064]
[1772800817467,3.73058078,86.25,86.202,10.44]
[1772800817667,3.73058078,86.249,86.2,2.86755064]
[1772800818564,3.73058078,86.248,86.2,2.86755064]
[1772800818770,3.73058078,86.263,86.22,2.86755064]
[1772800818966,3.73058078,86.263,86.24,2.86755064]
[1772800819171,3.73058078,86.277,86.24,2.86755064]
[1772800819969,3.73058078,86.277,86.23,2.86755064]
[1772800820565,3.73058078,86.268,86.23,2.86755064]
[1772800821073,3.73058078,86.266,86.23,2.86755064]
[1772800821773,3.73058078,86.266,86.22,2.86755064]
[1772800822267,3.73058078,86.252,86.21,2.86755064]
[1772800822873,3.73058078,86.252,86.2,13.30755064]
[1772800823173,3.73058078,86.252,86.2,2.86755064]
[1772800823672,3.73058078,86.252,86.204,10.439]
[1772800823871,3.73058078,86.252,86.21,2.86755064]
[1772800824566,3.73058078,86.249,86.21,2.86755064]
[1772800825070,3.73058078,86.249,86.19,2.86755064]
[1772800825273,3.73058078,86.238,86.19,2.86755064]
[1772800825776,3.73058078,86.238,86.2,2.86755064]
[1772800826677,3.73058078,86.235,86.194,1.28575837]
[1772800828680,3.73058078,86.235,86.2,2.86755064]
[1772800829176,3.73058078,86.235,86.194,1.28575837]
[1772800830272,3.73058078,86.235,86.2,2.86755064]
[1772800830774,14.16458078,86.246,86.2,2.86755064]
[1772800831077,3.73058078,86.245,86.2,2.86755064]
[1772800832077,3.73058078,86.245,86.21,2.86755064]
[1772800832677,3.73058078,86.245,86.22,2.86755064]
[1772800834680,3.73058078,86.245,86.204,1.42643386]
[1772800834681,3.73058078,86.245,86.21,2.86755064]
[1772800834978,3.73058078,86.245,86.211,10.438]
[1772800835178,3.73058078,86.245,86.22,2.86755064]
[1772800835380,3.73058078,86.245,86.21,2.86755064]
[1772800837585,3.73058078,86.245,86.2,2.86755064]
[1772800837786,3.73058078,86.245,86.21,2.86755064]
[1772800839580,3.73058078,86.245,86.22,2.86755064]
[1772800839984,10.432,86.261,86.22,2.86755064]
[1772800840184,3.85067595,86.249,86.19,2.86755064]
[1772800840783,10.436,86.231,86.19,2.86755064]
[1772800841089,14.28667595,86.231,86.19,2.86755064]
[1772800841792,14.28667595,86.229,86.19,2.86755064]
[1772800842391,14.28767595,86.227,86.178,1.60957455]
[1772800842594,3.85067595,86.226,86.174,10.443]
[1772800843391,3.85067595,86.221,86.17,2.86755064]
[1772800844294,3.85067595,86.221,86.18,2.86755064]
[1772800844894,3.85067595,86.216,86.18,2.86755064]
[1772800845091,3.85067595,86.216,86.17,2.86755064]
[1772800846190,3.85067595,86.216,86.18,2.86755064]
[1772800846588,3.85067595,86.216,86.19,2.86755064]
[1772800846789,2.86755064,86.25,86.19,2.86755064]
[1772800846992,3.85067595,86.23,86.19,2.86755064]
[1772800847900,3.85067595,86.23,86.2,2.86755064]
[1772800848600,3.85067595,86.23,86.19,2.86755064]
[1772800848793,3.85067595,86.23,86.192,10.441]
[1772800848996,3.85067595,86.229,86.19,2.86755064]
[1772800849707,3.85067595,86.227,86.19,2.86755064]
[1772800852396,10.437,86.225,86.19,2.86755064]
[1772800852697,3.85067595,86.224,86.19,2.86755064]
[1772800853294,3.85067595,86.224,86.18,2.86755064]
[1772800853898,10.438,86.213,86.18,2.86755064]
[1772800854195,3.85067595,86.212,86.18,2.86755064]
[1772800855705,3.96040314,86.21,86.18,2.86755064]
[1772800856704,3.96040314,86.21,86.17,2.86755064]
[1772800857803,10.439,86.208,86.17,2.86755064]
[1772800858198,3.96040314,86.207,86.17,2.86755064]
[1772800858500,3.96040314,86.207,86.18,2.86755064]
[1772800860405,3.96040314,86.219,86.18,2.86755064]
[1772800860707,3.96040314,86.219,86.19,2.86755064]
[1772800860906,3.96040314,86.213,86.138,1.35888932]
[1772800861105,3.96040314,86.209,86.151,3.69023711]
[1772800861306,3.96040314,86.209,86.16,2.86755064]
[1772800861700,3.96040314,86.209,86.17,2.86755064]
[1772800862002,3.96040314,86.209,86.18,2.86755064]
[1772800862408,3.96040314,86.209,86.165,3.99453949]
[1772800862604,4.04299226,86.226,86.19,2.86755064]
[1772800862905,4.04299226,86.226,86.2,2.86755064]
[1772800864002,458.45068052,86.237,86.2,2.86755064]
[1772800864607,4.04299226,86.234,86.2,2.86755064]
[1772800865510,4.04299226,86.248,86.22,2.86755064]
[1772800865709,4.04299226,86.248,86.14,62.0]
[1772800865710,4.04299226,86.268,86.23,2.86755064]
[1772800866910,4.04299226,86.267,86.23,2.86755064]
[1772800867910,10.432,86.262,86.23,2.86755064]
[1772800868509,4.04299226,86.267,86.24,2.86755064]
[1772800869011,4.04299226,86.282,86.25,2.86755064]
[1772800869211,4.04299226,86.282,86.172,20.887]
[1772800869212,10.43,86.281,86.24,2.86755064]
[1772800869612,4.04299226,86.282,86.24,2.86755064]
[1772800871813,4.04299226,86.278,86.24,2.86755064]
[1772800872513,4.04299226,86.278,86.24,2.86522274]
[1772800874414,4.04299226,86.299,86.26,2.86522274]
[1772800874919,4.04299226,86.299,86.25,2.86522274]
[1772800876017,4.04299226,86.289,86.25,2.86522274]
[1772800876918,4.04299226,86.301,86.26,2.86522274]
[1772800877219,4.04299226,86.301,86.27,2.86522274]
[1772800877819,10.428,86.3,86.27,2.86522274]
[1772800878119,10.428,86.3,86.26,2.86522274]
[1772800878916,4.04299226,86.297,86.26,2.86522274]
[1772800879220,4.04299226,86.297,86.253,3.99453949]
[1772800881212,10.429,86.292,86.253,3.99453949]
[1772800881416,4.04299226,86.297,86.253,3.99453949]
[1772800881617,2.86522274,86.29,86.23,3.99453949]
[1772800881818,4.04299226,86.279,86.23,3.99453949]
[1772800882018,4.04299226,86.279,86.24,2.86522274]
[1772800883821,4.04299226,86.279,86.24,6.85976223]
[1772800884021,10.429,86.292,86.25,2.86522274]
[1772800884022,14.47199226,86.292,86.25,2.86522274]
[1772800884422,10.428,86.301,86.26,2.86522274]
[1772800885324,4.04299226,86.305,86.27,2.86522274]
[1772800885519,2.86522274,86.33,86.271,3.99453949]
[1772800885828,4.04299226,86.329,86.29,2.86522274]
[1772800886027,4.04299226,86.329,86.28,2.86522274]
[1772800887325,4.04299226,86.329,86.29,2.86522274]
[1772800887530,4.04299226,86.329,86.3,2.86522274]
[1772800887732,4.04299226,86.343,86.3,2.86522274]
[1772800888823,14.46599226,86.341,86.3,2.86522274]
[1772800889232,14.46599226,86.341,86.29,3.99453949]
[1772800889432,14.46599226,86.341,86.3,2.86522274]
[1772800889631,4.04299226,86.34,86.3,2.86522274]
[1772800889829,4.04299226,86.337,86.29,6.85976223]
[1772800890331,4.04299226,86.337,86.3,2.86522274]
[1772800893426,10.422,86.348,86.3,2.86522274]
[1772800893628,10.422,86.348,86.301,3.8557499]
[1772800894531,3.6578591,86.35,86.311,3.8557499]
[1772800894730,10.421,86.358,86.311,3.8557499]
[1772800894930,3.6578591,86.364,86.311,3.8557499]
[1772800895332,10.42,86.36,86.311,3.8557499]
[1772800895730,3.6578591,86.364,86.32,2.86522274]
[1772800895934,3.6578591,86.364,86.25,11.57913181]
[1772800895935,3.6578591,86.364,86.321,3.8557499]
[1772800896131,3.6578591,86.364,86.33,2.86522274]
[1772800896427,2.86522274,86.38,86.321,3.8557499]
[1772800896428,10.418,86.379,86.34,2.86522274]
[1772800896632,3.6578591,86.38,86.34,2.86522274]
[1772800898135,3.6578591,86.38,86.331,3.8557499]
[1772800898335,3.6578591,86.369,86.32,2.86522274]
[1772800898732,3.6578591,86.369,86.321,3.8557499]
[1772800899832,3.6578591,86.367,86.321,3.8557499]
[1772800900329,3.6578591,86.367,86.32,2.86522274]
[1772800900535,3.6578591,86.355,86.31,2.86522274]
[1772800902237,3.6578591,86.355,86.31,6.72097264]
[1772800902538,3.6578591,86.371,86.321,3.8557499]
[1772800902838,3.6578591,86.371,86.33,2.86522274]
[1772800904341,3.6578591,86.371,86.331,3.8557499]
[1772800904637,3.6578591,86.385,86.341,3.8557499]
[1772800904834,3.6578591,86.385,86.35,2.86522274]
[1772800905032,10.416,86.396,86.35,2.86522274]
[1772800905233,3.6578591,86.399,86.35,2.86522274]
[1772800905832,3.6578591,86.399,86.36,2.86522274]
[1772800907741,3.6578591,86.409,86.361,3.8557499]
[1772800908343,10.415,86.407,86.361,3.8557499]
[1772800908641,3.6578591,86.406,86.361,3.8557499]
[1772800909642,14.0728591,86.405,86.361,3.8557499]
[1772800910244,3.6578591,86.396,86.347,3.8557499]
[1772800910747,3.6578591,86.396,86.35,2.86522274]
[1772800911446,3.6578591,86.396,86.351,10.421]
[1772800911647,3.6578591,86.396,86.35,2.86522274]
[1772800912347,3.6578591,86.396,86.35,6.72097264]
[1772800913342,10.416,86.394,86.35,6.72097264]
[1772800914253,10.417,86.386,86.35,2.86522274]
[1772800914546,3.9236017,86.379,86.336,3.94715832]
[1772800914749,3.9236017,86.379,86.321,3.94715832]
[1772800915651,3.9236017,86.374,86.322,3.94715832]
[1772800916853,2.86522274,86.38,86.322,3.94715832]
[1772800916854,3.9236017,86.371,86.324,10.425]
[1772800918049,3.9236017,86.371,86.33,2.86522274]
[1772800919251,10.42,86.368,86.33,2.86522274]
[1772800919453,3.9236017,86.371,86.33,2.86522274]
[1772800919653,8.83344579,86.409,86.322,3.94715832]
[1772800919654,3.9236017,86.369,86.322,3.94715832]
[1772800919864,20.829,86.41,86.31,2.86522274]
[1772800919865,2.86522274,86.36,86.31,2.86522274]
[1772800920053,3.9236017,86.359,86.306,10.427]
[1772800920753,10.421,86.357,86.31,2.86522274]
[1772800920949,3.9236017,86.356,86.32,2.86522274]
[1772800922458,3.82692819,86.371,86.33,2.86522274]
[1772800922954,8.83344579,86.409,86.331,3.90248781]
[1772800922955,3.82692819,86.389,86.331,3.90248781]
[1772800923748,10.417,86.386,86.333,10.424]
[1772800923957,3.82692819,86.385,86.35,2.86522274]
[1772800926359,3.82692819,86.385,86.341,3.90248781]
[1772800926661,3.82692819,86.385,86.339,10.423]
[1772800928558,3.82692819,86.382,86.321,10.425]
[1772800928757,3.82692819,86.382,86.312,3.90248781]
[1772800929063,3.82692819,86.405,86.321,3.90248781]
[1772800929563,10.417,86.39,86.347,10.422]
[1772800930353,10.417,86.39,86.32,7.14706776]
[1772800930354,3.82692819,86.405,86.348,3.90248781]
[1772800931764,10.417,86.392,86.35,10.422]
[1772800933662,10.417,86.392,86.348,3.90248781]
[1772800934159,10.418,86.384,86.348,3.90248781]
[1772800934463,3.82692819,86.392,86.348,3.90248781]
[1772800935767,14.24392819,86.391,86.35,10.422]
[1772800936362,14.24392819,86.388,86.348,3.90248781]
[1772800938068,3.82692819,86.388,86.348,14.32448781]
[1772800938567,14.24392819,86.388,86.348,3.90248781]
[1772800939668,10.52858702,86.418,86.341,10.423]
[1772800939669,3.82692819,86.384,86.341,10.423]
[1772800940267,3.82692819,86.384,86.331,3.90248781]
[1772800941370,3.82692819,86.384,86.338,10.423]
[1772800941566,3.82692819,86.382,86.316,3.90248781]
[1772800941770,3.82692819,86.38,86.316,3.90248781]
[1772800941970,3.82692819,86.378,86.316,3.90248781]
[1772800942166,3.82692819,86.376,86.316,3.90248781]
[1772800942370,3.82692819,86.374,86.316,3.90248781]
[1772800942572,3.82692819,86.372,86.316,3.90248781]
[1772800942773,3.82692819,86.362,86.316,3.90248781]
[1772800944164,3.82692819,86.362,86.32,3.90248781]
[1772800947168,3.82692819,86.362,86.312,10.426]
[1772800947372,3.82692819,86.362,86.314,14.32848781]
[1772800947672,3.82692819,86.362,86.315,3.90248781]
[1772800948569,3.82692819,86.362,86.32,2.86014764]
[1772800948971,2.86014764,86.36,86.31,2.86014764]
[1772800949266,3.82692819,86.359,86.31,2.86014764]
[1772800950776,3.82692819,86.357,86.31,2.86014764]
[1772800950971,3.82692819,86.357,86.311,3.90248781]
[1772800951176,3.82692819,86.377,86.321,3.90248781]
[1772800951876,10.42,86.367,86.321,3.90248781]
[1772800952479,3.69113873,86.366,86.321,3.90248781]
[1772800953180,2.86014764,86.36,86.307,3.84147751]
[1772800953376,3.69113873,86.359,86.307,3.84147751]
[1772800954777,3.69113873,86.351,86.307,3.84147751]
[1772800955080,3.69113873,86.351,86.3,2.86014764]
[1772800955679,10.422,86.346,86.3,2.86014764]
[1772800956076,3.69113873,86.351,86.301,3.84147751]
[1772800956275,3.69113873,86.351,86.31,2.86014764]
[1772800956471,2.86014764,86.34,86.285,3.84147751]
[1772800956679,3.69113873,86.319,86.26,2.86014764]
[1772800957277,3.69113873,86.319,86.261,3.84147751]
[1772800957584,3.69113873,86.315,86.27,2.86014764]
[1772800957774,3.69113873,86.315,86.271,3.84147751]
[1772800958278,3.69113873,86.329,86.281,3.84147751]
[1772800958478,3.69113873,86.329,86.29,2.86014764]
[1772800959082,3.69113873,86.344,86.3,2.86014764]
[1772800959875,3.69113873,86.344,86.301,3.84147751]
[1772800960079,10.421,86.354,86.31,2.86014764]
[1772800960279,3.69113873,86.353,86.301,3.84147751]
[1772800961482,3.69113873,86.348,86.301,3.84147751]
[1772800961678,3.69113873,86.348,86.29,2.86014764]
[1772800961874,3.69113873,86.348,86.291,3.84147751]
[1772800962782,3.69113873,86.345,86.291,3.84147751]
[1772800963774,10.422,86.344,86.291,3.84147751]
[1772800964088,3.69113873,86.345,86.3,2.86014764]
[1772800965481,10.422,86.344,86.293,3.84147751]
[1772800965682,3.69113873,86.329,86.27,2.86014764]
[1772800965884,2.86014764,86.32,86.27,2.86014764]
[1772800966284,3.69113873,86.319,86.27,2.86014764]
[1772800966484,3.69113873,86.318,86.261,3.84147751]
[1772800966686,3.69113873,86.299,86.25,2.86014764]
[1772800967387,3.69113873,86.289,86.24,2.86014764]
[1772800967787,3.69113873,86.288,86.24,2.86014764]
[1772800968780,3.69113873,86.288,86.234,3.84147751]
[1772800968982,3.69113873,86.288,86.24,2.86014764]
[1772800969382,2.86014764,86.28,86.234,3.84147751]
[1772800969585,3.69113873,86.279,86.23,2.86014764]
[1772800969790,3.69113873,86.279,86.221,10.437]
[1772800970291,3.69113873,86.27,86.22,2.86014764]
[1772800970891,3.69113873,86.27,86.219,3.84147751]
[1772800970892,3.69113873,86.27,86.23,2.86014764]
[1772800971093,3.69113873,86.27,86.204,3.84147751]
[1772800971291,3.69113873,86.259,86.21,2.86014764]
[1772800971989,3.69113873,86.259,86.201,10.44]
[1772800972295,3.69113873,86.259,86.21,2.86014764]
[1772800972499,3.69113873,86.259,86.202,3.84147751]
[1772800973492,3.69113873,86.259,86.21,2.86014764]
[1772800973795,3.69113873,86.259,86.202,3.84147751]
[1772800973994,3.69113873,86.249,86.202,3.84147751]
[1772800975594,3.69113873,86.249,86.21,2.86014764]
[1772800977189,3.69113873,86.249,86.202,14.28147751]